{"text_format":"1","workbook":"xlsx","n_sheets":1,"sheets":["Stellenbörsen"],"not_rendered":{"charts":0,"images":0,"macros":1,"external_links":0,"defined_names":0,"comments":0,"pivot_tables":0},"unopened":[],"bounds":{"document_bytes":16777216,"sheet_cells":100000,"rows_first":2000,"rows_last":500,"rows_between":2000,"halvings":0,"cell_chars":16384,"cell_head_chars":4096},"cells_cut":0,"cells_raw":0,"read":"whole","date_system":"1900"}

{"sheet":"Stellenbörsen","index":0,"n_rows":45,"n_cols":11,"rows_kept":45,"cut":false,"hidden":false,"merged":[[44,0,49,2],[1,4,2,4],[1,0,2,0],[28,0,29,0],[1,1,2,1],[28,6,29,6],[1,2,2,2],[1,5,2,5],[28,1,29,1],[28,2,29,2],[28,3,29,3],[1,6,2,6],[1,3,2,3],[27,6,27,7],[28,4,29,4],[28,5,29,5],[21,0,26,2]]}
["Akad. Beschäftigte"]
[null,"Onlineportale","Bemerkung","Deutsche Version","Englische Version","Preis pro Anzeige"]
[]
[null,"www.academics.com","Laufzeit: 8 Wochen",null,null,714,{"$f":"IF(AND(J4=TRUE,I4=TRUE),F4*2,IF(I4=TRUE,F4,IF(J4=TRUE,F4,0)))","v":0},false,false,false]
[null,"www.myscience.de","Laufzeit: 30 Tage",null,null,499.8,{"$f":"IF(AND(J5=TRUE,I5=TRUE),F5*2,IF(I5=TRUE,F5,IF(J5=TRUE,F5,0)))","v":0},false,false,false]
[null,"www.FAZjob.net","Laufzeit: 30 Tage",null,null,827.05,0,false,false,false]
[null,"www.stepstone.de","Laufzeit: 30 Tage",null,null,749.7,0,false,false,false]
[null,"www.jobvector.de","Laufzeit: 6 Wochen",null,null,1097.18,0,false,false,false]
[null,"www.jobware.de","Laufzeit: 28 Tage",null,null,602.4,0,false,false,false]
[null,"www.monster.de","Laufzeit: 30 Tage",null,null,416.5,0,false,false,false]
[null,"www.stellenanzeigen.de","Laufzeit: 30 Tage",null,null,361.36,0,false,false,false]
[null,"www.sueddeutsche.de","Laufzeit: 28 Tage",null,null,696.15,0,false,false,false]
[null,"www.xing.de","Laufzeit: 30 Tage",null,null,708.05,0,false,false,false]
[null,"www.jobboerse.arbeitsagentur.de",null,null,null,29.75,{"$f":"F14","v":29.75},"(Pflicht)",true,false]
[null,"www.naturejobs.com","Laufzeit: 8 Wochen",null,null,1188.81,0,false,false,false]
[null,"www.academics.de / zeit.de","Laufzeit: 28 Tage",null,null,1555.26,0,false,false,false]
[null,"www.wissenschaftler.de",null,null,null,351.05,0,false,false,false]
[null,"www.swp.de","Laufzeit: 30 Tage",null,null,{"$f":"576.47*1.19","v":685.99929999999995},0,null,false,false]
[null,"www.schwaebische.de","Laufzeit: 30 Tage",null,null,826,0,null,false,false]
[]
[null,null,null,null,null,"Zwischensumme:",{"$f":"SUM(G4:G19)","v":29.75}]
["Eventuell weitere Portale in denen ausgeschrieben werden soll, welche jedoch nicht aufgelistet sind:"]
[]
[]
[]
[]
[]
[null,null,null,null,null,null,"Preise"]
[null,"Printmedien","Anzeigenschluss","Erscheinungstermin","Deutsche Version","Englische Version","Format 90 x 105 ohne Bild"]
[]
[null,"Angewandte Chemie","4 Wochen vorher","Montag",null,null,{"$f":"742.68*1.19","v":883.78919999999994},{"$f":"IF(AND(J31=TRUE,K31=TRUE),G31*2,IF(J31=TRUE,G31,IF(K31=TRUE,G31,0)))","v":0},false,false,false]
[null,"Die Zeit","Dienstag, 11.00 Uhr","Donnerstag",null,null,2516.89,{"$f":"IF(AND(J32=TRUE,K32=TRUE),G32*2,IF(J32=TRUE,G32,IF(K32=TRUE,G32,0)))","v":0},false,false,false]
[null,"DUZ Magazin","auf Anfrage","14-tägig im Wechsel",null,null,{"$f":"1.19*435.36","v":518.07839999999999},0,false,false,false]
[null,"Forschung und Lehre","Mitte des Monats (auf Anfrage)","1x monatlich am Ende",null,null,670.46,0,false,false,false]
[null,"Nature","Donnerstag, 12.00 Uhr der Vorwoche","Donnerstag",null,null,{"$f":"1.19*2202.38","v":2620.8321999999998},0,false,false,false]
[null,"Physik Journal","4 Wochen vorher","1x monatlich am Anfang",null,null,{"$f":"1.19*1408.52","v":1676.1387999999999},0,false,false,false]
[null,"Schwäbische Zeitung","Mittwoch, 17.00 Uhr","Samstag",null,null,2777.32,0,false,false,false]
[null,"Staatsanzeiger für BW","Dienstag, 16:00 uhr","Freitag",null,null,627.79999999999995,0,false,false,false]
[null,"Süddeutsche Zeitung","Mittwoch, 15.00 Uhr","Samstag",null,null,{"$f":"1.19*2458.51","v":2925.6269000000002},0,false,false,false]
[null,"Südwest Presse -Ausgabe D-/Onlinezusch.","Donnerstag, 10.00 Uhr","Samstag",null,null,1763.85,0,false,false,false]
[null,"Ulmer Wochenblatt -Ausgabe 301-","Dienstag, 10.00 Uhr","Mittwoch",null,null,411.01,0,false,false,false]
[null,"VDI Nachrichten","Montag, 10.00 Uhr","Freitag",null,null,2133.2800000000002,0,false,false,false]
[null,null,null,null,null,null,"Zwischensumme:",{"$f":"SUM(H31:H42)","v":0}]
[]
["Eventuell weitere Portale in denen ausgeschrieben werden soll, welche jedoch nicht aufgelistet sind:",null,null,null,null,null,"Endsumme:",{"$f":"G21+H43","v":29.75}]